fUST/lending_fUST_20250109
["ID","MTS","AMOUNT","RATE_DAILY","PERIOD"]
[348272449,1736429439009,-2549.57709106,0.00021893,2]
[348272450,1736429439019,-500.0,0.00021913,3]
[348272451,1736429439028,-1085.95,0.00021913,2]
[348272452,1736429439037,-532.67,0.00021914,3]
[348272453,1736429439047,-500.0,0.00021914,3]
[348272454,1736429439057,-500.0,0.00021914,3]
[348272455,1736429439066,-500.0,0.00021915,3]
[348272456,1736429439078,-3832.09,0.00021915,3]
[348272457,1736429439088,-655.56,0.00021916,3]
[348272458,1736429439098,-350.54684261,0.00022,2]
[348272459,1736429439115,-200.0,0.00022,3]
[348272460,1736429439126,-151.0,0.00022,3]
[348272461,1736429439135,-151.0,0.00022,3]
[348272462,1736429439146,-500.0,0.00022056,3]
[348272463,1736429439155,-500.0,0.00022056,3]
[348272464,1736429439166,-500.0,0.00022056,3]
[348272465,1736429439175,-500.0,0.00022056,3]
[348272466,1736429439185,-817.24,0.00022056,3]
[348272467,1736429439195,-817.24,0.00022056,3]
[348272468,1736429439206,-500.0,0.00022056,3]
[348272469,1736429439216,-1610.22,0.00022056,3]
[348272470,1736429439225,-1610.22,0.00022056,3]
[348272471,1736429439235,-500.0,0.00022057,3]
[348272472,1736429439244,-500.0,0.00022057,3]
[348272473,1736429439255,-297.35062344,0.00022057,3]
[348272474,1736429439264,-500.0,0.00022057,3]
[348272475,1736429439273,-501.69499288,0.00022057,3]
[348272476,1736429439283,-151.0,0.00022057,7]
[348272477,1736429439292,-500.0,0.00022057,3]
[348272478,1736429439301,-151.0,0.00022057,7]
[348272479,1736429439311,-500.0,0.00022057,3]
[348272480,1736429439320,-500.0,0.00022057,3]
[348272481,1736429439329,-500.0,0.00022057,3]
[348272482,1736429439339,-500.0,0.00022057,3]
[348272483,1736429439348,-500.0,0.00022057,3]
[348272484,1736429439359,-500.0,0.00022057,3]
[348272485,1736429439368,-500.0,0.00022057,3]
[348272486,1736429439377,-500.0,0.00022057,3]
[348272487,1736429439390,-502.57867064,0.00022057,3]
[348272488,1736429439405,-500.0,0.00022057,3]
[348272489,1736429439419,-500.0,0.00022057,3]
[348272490,1736429439431,-500.0,0.00022057,3]
[348272491,1736429439443,-500.0,0.00022057,3]
[348272492,1736429439455,-500.0,0.00022057,3]
[348272493,1736429439468,-500.0,0.00022057,3]
[348272494,1736429439480,-500.0,0.00022057,3]
[348272495,1736429439493,-500.0,0.00022057,3]
[348272496,1736429439506,-500.0,0.00022057,3]
[348272497,1736429439518,-524.39906635,0.00022057,3]
[348272498,1736429439530,-529.73483436,0.00022057,3]
[348272499,1736429439543,-500.0,0.00022057,3]
[348272500,1736429439556,-500.0,0.00022057,3]
[348272501,1736429439568,-500.0,0.00022057,3]
[348272502,1736429439580,-500.0,0.00022057,3]
[348272503,1736429439592,-500.0,0.00022057,3]
[348272504,1736429439606,-500.0,0.00022057,3]
[348272505,1736429439619,-500.0,0.00022057,3]
[348272506,1736429439631,-500.0,0.00022057,3]
[348272507,1736429439643,-500.0,0.00022057,3]
[348272508,1736429439655,-500.0,0.00022057,3]
[348272509,1736429439669,-500.0,0.00022057,3]
[348272510,1736429439683,-500.0,0.00022057,3]
[348272511,1736429439694,-500.0,0.00022057,3]
[348272512,1736429439707,-500.0,0.00022057,3]
[348272513,1736429439720,-238.67660879,0.00022057,3]
[348272514,1736429439733,-500.0,0.00022057,3]
[348272515,1736429439746,-500.0,0.00022057,3]
[348272516,1736429439759,-151.0,0.00022057,2]
[348272517,1736429439773,-500.0,0.00022057,3]
[348272518,1736429439786,-151.0,0.00022057,2]
[348272519,1736429439800,-151.833625,0.00022057,7]
[348272520,1736429439812,-151.833625,0.00022057,7]
[348272521,1736429439822,-500.0,0.00022057,3]
[348272522,1736429439833,-151.0,0.00022057,7]
[348272523,1736429439844,-151.0,0.00022057,7]
[348272524,1736429439858,-151.0,0.00022057,7]
[348272525,1736429439872,-500.0,0.00022057,3]
[348272526,1736429439885,-500.0,0.00022057,3]
[348272527,1736429439898,-158.496198,0.00022057,7]
[348272528,1736429439908,-151.0,0.00022057,7]
[348272529,1736429439920,-151.0,0.00022057,7]
[348272530,1736429439931,-500.0,0.00022057,3]
[348272531,1736429439943,-500.0,0.00022057,3]
[348272532,1736429439955,-213.743709,0.00022057,7]
[348272533,1736429439966,-500.0,0.00022057,3]
[348272534,1736429439977,-164.849016,0.00022057,7]
[348272535,1736429439987,-500.0,0.00022058,3]
[348272536,1736429439998,-600.96645704,0.0002206,3]
[348272537,1736429440010,-500.0,0.0002206,3]
[348272538,1736429440021,-500.0,0.0002206,3]
[348272539,1736429440032,-500.0,0.0002206,3]
[348272540,1736429440043,-817.24,0.0002206,3]
[348272541,1736429440055,-500.0,0.0002206,3]
[348272542,1736429440067,-1610.22,0.0002206,3]
[348272543,1736429440078,-151.0,0.00022061,7]
[348272544,1736429440090,-151.0,0.00022061,7]
[348272545,1736429440103,-151.0,0.00022061,7]
[348272546,1736429440115,-151.0,0.00022061,7]
[348272547,1736429440126,-151.0,0.00022061,7]
[348272548,1736429440137,-151.0,0.00022061,7]
[348272549,1736429440148,-151.0,0.00022061,7]
[348272550,1736429440160,-151.0,0.00022061,7]
[348272551,1736429440170,-151.0,0.00022061,7]
[348272552,1736429440181,-151.0,0.00022061,7]
[348272553,1736429440193,-151.0,0.00022061,7]
[348272554,1736429440205,-151.0,0.00022061,7]
[348272555,1736429440215,-500.0,0.00022061,3]
[348272556,1736429440227,-500.0,0.00022061,3]
[348272558,1736429440238,-500.0,0.00022061,3]
[348272559,1736429440248,-500.0,0.00022061,3]
[348272560,1736429440260,-151.0,0.00022061,7]
[348272561,1736429440271,-151.0,0.00022061,7]
[348272562,1736429440282,-704.44,0.00022061,3]
[348272563,1736429440294,-500.0,0.00022062,3]
[348272564,1736429440305,-151.0,0.00022065,7]
[348272565,1736429440316,-151.0,0.00022065,7]
[348272567,1736429440327,-500.0,0.00022095,3]
[348272568,1736429440338,-551.8,0.00022187,3]
[348272569,1736429440349,-1085.95,0.00022187,2]
[348272571,1736429440362,-532.67,0.00022188,3]
[348272572,1736429440373,-500.0,0.00022188,3]
[348272574,1736429440384,-500.0,0.00022188,3]
[348272577,1736429440489,-500.0,0.00022189,3]
[348272579,1736429440499,-3832.09,0.00022189,3]
[348272581,1736429440509,-655.56,0.0002219,3]
[348272583,1736429440518,-293.53200701,0.00022252,2]
[348272585,1736429440528,-327.03380797,0.00022273,2]
[348272587,1736429440537,-151.0,0.000223,8]
[348272589,1736429440546,-151.0,0.000223,6]
[348272590,1736429440557,-500.0,0.00022331,3]
[348272592,1736429440571,-612.86144188,0.00022331,3]
[348272593,1736429440581,-509.39432861,0.00022331,3]
[348272595,1736429440590,-501.98364643,0.00022331,3]
[348272597,1736429440600,-500.0,0.00022331,3]
[348272599,1736429440611,-507.59529068,0.00022331,3]
[348272600,1736429440620,-500.0,0.00022331,3]
[348272602,1736429440630,-500.0,0.00022331,3]
[348272603,1736429440640,-500.0,0.00022331,3]
[348272604,1736429440649,-500.0,0.00022331,3]
[348272605,1736429440660,-501.35000328,0.00022331,3]
[348272606,1736429440671,-151.833625,0.00022331,7]
[348272607,1736429440681,-151.833625,0.00022331,7]
[348272608,1736429440691,-151.0,0.00022331,7]
[348272609,1736429440702,-500.0,0.00022331,3]
[348272610,1736429440711,-151.0,0.00022331,7]
[348272612,1736429440721,-151.0,0.00022331,7]
[348272613,1736429440730,-500.0,0.00022335,3]
[348272615,1736429440741,-500.0,0.00022335,3]
[348272617,1736429440751,-500.0,0.00022335,3]
[348272619,1736429440760,-704.44,0.00022335,3]
[348272621,1736429440770,-600.0,0.00022335,2]
[348272622,1736429440780,-500.0,0.00022368,3]
[348272624,1736429440789,-817.24,0.00022368,3]
[348272625,1736429440799,-1610.22,0.00022368,3]
[348272627,1736429440808,-500.0,0.00022369,3]
[348272628,1736429440818,-151.0,0.000224,7]
[348272629,1736429440827,-500.0,0.00022438,3]
[348272630,1736429440837,-9212.05110441,0.00022448,2]
[348272631,1736429440846,-5000.0,0.00022448,2]
[348272632,1736429440858,-5000.0,0.00022448,2]
[348272633,1736429440867,-5000.0,0.00022448,2]
[348272634,1736429440877,-1085.95,0.00022461,2]
[348272635,1736429440887,-532.67,0.00022462,3]
[348272636,1736429440897,-162.31359421,0.00022462,3]
[348272637,1736429440907,-500.0,0.00022462,3]
[348272638,1736429440916,-485.1617,0.00022463,3]
[348272639,1736429440925,-3832.09,0.00022463,3]
[348272640,1736429440935,-655.56,0.00022464,3]
[348272641,1736429440945,-153.0,0.00022466,2]
[348272642,1736429440955,-153.0,0.00022466,2]
[348272643,1736429440964,-153.0,0.00022466,2]
[348272644,1736429440973,-260.8247169,0.00022466,2]
[348272645,1736429440983,-153.0,0.00022466,2]
[348272646,1736429440992,-153.7491537,0.00022466,2]
[348272647,1736429441002,-161.3333495,0.00022466,2]
[348272648,1736429441011,-500.0,0.00022473,2]
[348272649,1736429441021,-166.16249075,0.00022473,2]
[348272650,1736429441030,-568.66388655,0.00022473,2]
[348272651,1736429441041,-329.01280828,0.00022473,2]
[348272652,1736429441050,-500.24642074,0.00022473,2]
[348272653,1736429441059,-20851.85258986,0.00022499,5]
[348272654,1736429441069,-104289.78070706,0.000225,5]
[348272655,1736429441079,-300.52,0.000225,2]
[348272656,1736429441088,-151.0,0.000225,7]
[348272657,1736429441097,-73815.81342808,0.000225,2]
[348272658,1736429441109,-233.080912,0.00022567,2]
[348272659,1736429441119,-601.24134268,0.00022568,2]
[348272660,1736429441129,-151.0,0.000226,10]
[348272661,1736429441138,-151.0,0.000226,10]
[348272662,1736429441148,-500.0,0.00022604,3]
[348272663,1736429441158,-500.0,0.00022609,3]
[348272664,1736429441167,-151.0,0.00022609,7]
[348272665,1736429441176,-151.0,0.00022609,7]
[348272666,1736429441186,-704.44,0.00022609,3]
[348272667,1736429441196,-151.0,0.00022616,7]
[348272668,1736429441205,-151.0,0.00022616,7]
[348272669,1736429441215,-500.0,0.00022643,3]
[348272670,1736429441224,-151.0,0.000227,9]
[348272671,1736429441234,-293.53200701,0.00022722,2]
[348272672,1736429441243,-1085.95,0.00022735,2]
[348272673,1736429441252,-532.67,0.00022736,3]
[348272674,1736429441262,-500.0,0.00022736,3]
[348272675,1736429441271,-3832.09,0.00022737,3]
[348272676,1736429441280,-655.56,0.00022738,3]
[348272677,1736429441290,-349.7880058,0.00022769,2]
[348272678,1736429441299,-2000.0,0.0002282,2]
[348272679,1736429441308,-168.5,0.00022823,2]
[348272680,1736429441317,-151.0,0.00022857,7]
[348272681,1736429441327,-151.0,0.00022857,7]
[348272682,1736429441337,-151.0,0.00022857,7]
[348272683,1736429441353,-9372.41481073,0.00022857,2]
[348272684,1736429441363,-5000.0,0.00022857,2]
[348272685,1736429441372,-500.0,0.00022883,3]
[348272686,1736429441381,-704.44,0.00022883,3]
[348272687,1736429441391,-151.0,0.000229,7]
[348272688,1736429441400,-500.0,0.00022913,3]
[348272689,1736429441410,-817.24,0.00022913,3]
[348272690,1736429441419,-1610.22,0.00022913,3]
[348272691,1736429441428,-150.0,0.00022914,2]
[348272692,1736429441438,-535.0,0.00022914,2]
[348272693,1736429441447,-2115.666,0.00022914,2]
[348272694,1736429441456,-2317.0,0.00022914,2]
[348272695,1736429441466,-500.0,0.00022917,3]
[348272696,1736429441475,-151.0,0.00022946,7]
[348272697,1736429441484,-151.0,0.00022998,2]
[348272698,1736429441494,-151.0,0.00022998,7]
[348272699,1736429441503,-151.0,0.00022998,7]
[348272700,1736429441513,-239.27372,0.00022998,7]
[348272701,1736429441522,-508.52602473,0.00022998,3]
[348272702,1736429441531,-500.0,0.00022999,3]
[348272703,1736429441541,-500.0,0.00022999,3]
[348272704,1736429441550,-500.0,0.00022999,3]
[348272705,1736429441559,-500.0,0.00022999,3]
[348272706,1736429441569,-500.0,0.00022999,3]
[348272707,1736429441579,-257.85532106,0.00022999,3]
[348272708,1736429441588,-500.0,0.00022999,3]
[348272709,1736429441597,-500.0,0.00022999,3]
[348272710,1736429441608,-500.0,0.00022999,3]
[348272711,1736429441617,-500.0,0.00022999,3]
[348272712,1736429441627,-500.0,0.00022999,3]
[348272713,1736429441636,-512.48,0.00022999,3]
[348272714,1736429441646,-817.24,0.00022999,3]
[348272715,1736429441656,-817.24,0.00022999,3]
[348272716,1736429441669,-817.24,0.00022999,3]
[348272717,1736429441678,-817.24,0.00022999,3]
[348272718,1736429441688,-817.24,0.00022999,3]
[348272719,1736429441697,-817.24,0.00022999,3]
[348272720,1736429441707,-817.24,0.00022999,3]
[348272721,1736429441716,-817.24,0.00022999,3]
[348272722,1736429441726,-817.24,0.00022999,3]
[348272723,1736429441736,-817.24,0.00022999,3]
[348272724,1736429441748,-817.24,0.00022999,3]
[348272725,1736429441759,-817.24,0.00022999,3]
[348272726,1736429441768,-817.4,0.00022999,3]
[348272727,1736429441778,-1610.22,0.00022999,3]
[348272728,1736429441787,-1610.22,0.00022999,3]
[348272729,1736429441797,-1610.22,0.00022999,3]
[348272730,1736429441807,-1610.22,0.00022999,3]
[348272731,1736429441818,-1610.22,0.00022999,3]
[348272732,1736429441829,-1610.22,0.00022999,3]
[348272733,1736429441840,-1610.22,0.00022999,3]
[348272734,1736429441851,-1610.22,0.00022999,3]
[348272735,1736429441862,-1610.22,0.00022999,3]
[348272736,1736429441871,-1610.22,0.00022999,3]
[348272737,1736429441881,-1610.22,0.00022999,3]
[348272738,1736429441891,-1610.22,0.00022999,3]
[348272739,1736429441900,-1610.42752206,0.00022999,3]
[348272740,1736429441910,-24862.6055046,0.00023,10]
[348272741,1736429441920,-14121.49901502,0.00023,10]
[348272742,1736429442219,-372.118,0.00019997,3]
[348272782,1736429445841,-0.51612109,0.00019997,3]
[348272783,1736429445854,-127.36587891,0.00019997,3]
[348272784,1736429445864,-1102.35874152,0.00022057,3]
[348272785,1736429445876,-192.47125848,0.00022057,3]
[348272786,1736429445887,-1294.83,0.00022331,3]
[348272787,1736429445897,-1294.83,0.00022605,3]
[348272788,1736429445908,-15878.50098498,0.00023,10]
[348272789,1736429445919,-29706.64874825,0.00023,10]
[348272790,1736429445929,-1333.06510413,0.00023,10]
[348272791,1736429445939,-59076.5669589,0.00023,30]
[348272792,1736429445949,-151.0,0.00023,7]
[348272793,1736429445958,-151.0,0.00023,7]
[348272794,1736429445967,-151.0,0.00023,7]
[348272795,1736429445977,-252.7414,0.00023,7]
[348272796,1736429445987,-151.0,0.00023,8]
[348272797,1736429445996,-151.0,0.00023,7]
[348272798,1736429446006,-151.0,0.00023,7]
[348272799,1736429446015,-151.0,0.00023,7]
[348272800,1736429446025,-151.0,0.00023,7]
[348272801,1736429446035,-151.0,0.00023,7]
[348272802,1736429446044,-151.0,0.00023,7]
[348272803,1736429446055,-151.0,0.00023,7]
[348272804,1736429446065,-151.0,0.00023,7]
[348272805,1736429446075,-151.0,0.00023,7]
[348272806,1736429446085,-151.0,0.00023,7]
[348272807,1736429446094,-151.0,0.00023,7]
[348272808,1736429446104,-151.0,0.00023,7]
[348272809,1736429446116,-151.0,0.00023,7]
[348272810,1736429446125,-151.0,0.00023,7]
[348272811,1736429446134,-206.028461,0.00023,7]
[348272813,1736429446144,-200.0,0.00023,2]
[348272814,1736429446153,-151.833625,0.00023,7]
[348272815,1736429446163,-151.833625,0.00023,7]
[348272816,1736429446173,-151.833625,0.00023,7]
[348272817,1736429446183,-151.833625,0.00023,7]
[348272818,1736429446191,-151.833625,0.00023,7]
[348272820,1736429446201,-151.833625,0.00023,7]
[348272821,1736429446211,-151.0,0.00023,7]
[348272822,1736429446220,-151.0,0.00023,7]
[348272823,1736429446229,-151.0,0.00023,7]
[348272824,1736429446238,-210.473089,0.00023,7]
[348272825,1736429446248,-151.0,0.00023,7]
[348272826,1736429446258,-151.0,0.00023,7]
[348272827,1736429446267,-151.0,0.00023,7]
[348272828,1736429446277,-268.111846,0.00023,7]
[348272829,1736429446285,-151.0,0.00023,7]
[348272830,1736429446295,-151.0,0.00023,7]
[348272831,1736429446305,-151.0,0.00023,7]
[348272833,1736429446314,-151.0,0.00023,6]
[348272835,1736429446324,-151.0,0.00023,7]
[348272837,1736429446333,-151.0,0.00023,7]
[348272838,1736429446342,-301.99999914,0.00023,2]
[348272841,1736429446352,-151.0,0.00023,7]
[348272843,1736429446363,-1085.95,0.00023009,2]
[348272844,1736429446373,-532.67,0.0002301,3]
[348272846,1736429446383,-500.0,0.0002301,3]
[348272848,1736429446393,-3832.09,0.00023011,3]
[348272850,1736429446402,-655.56,0.00023012,3]
[348272852,1736429446412,-500.02542539,0.00023021,2]
[348272854,1736429446489,-1000.0,0.00023021,2]
[348272856,1736429446500,-156.0,0.00023024,2]
[348272858,1736429446510,-156.0,0.00023024,2]
[348272860,1736429446520,-156.0,0.00023024,2]
[348272862,1736429446529,-156.0,0.00023024,2]
[348272863,1736429446538,-156.0,0.00023024,2]
[348272865,1736429446549,-156.0,0.00023024,2]
[348272866,1736429446558,-156.0,0.00023024,2]
[348272867,1736429446568,-156.0,0.00023024,2]
[348272869,1736429446577,-156.0,0.00023024,2]
[348272871,1736429446587,-156.0,0.00023024,2]
[348272873,1736429446596,-162.41,0.00023024,2]
[348272875,1736429446607,-1000.0,0.00023039,2]
[348272876,1736429446616,-197.69,0.00023045,2]
[348272878,1736429446625,-1000.0,0.00023046,2]
[348272880,1736429446634,-1000.0,0.00023047,2]
[348272882,1736429446643,-1000.0,0.00023057,2]
[348272884,1736429446653,-196.0,0.00023064,2]
[348272886,1736429446663,-151.0,0.000231,8]
[348272888,1736429446677,-153.43,0.000231,31]
[348272890,1736429446689,-153.43,0.000231,31]
[348272891,1736429446699,-1000.0,0.00023102,2]
[348272893,1736429446709,-334.22438315,0.00023105,2]
[348272895,1736429446719,-1000.0,0.00023146,2]
[348272897,1736429446729,-613.1,0.00023157,3]
[348272898,1736429446738,-704.44,0.00023157,3]
[348272900,1736429446748,-1203.667,0.00023157,2]
[348272902,1736429446758,-201.0,0.0002317,10]
[348272903,1736429446768,-151.0,0.00023179,7]
[348272904,1736429446777,-151.833625,0.00023179,7]
[348272905,1736429446786,-151.833625,0.00023179,7]
[348272906,1736429446796,-151.0,0.00023179,7]
[348272908,1736429446806,-151.0,0.00023179,7]
[348272910,1736429446816,-151.0,0.00023179,7]
[348272911,1736429446826,-404.48356147,0.00023179,7]
[348272912,1736429446836,-404.48356147,0.00023179,7]
[348272913,1736429446847,-404.48356147,0.00023179,7]
[348272914,1736429446857,-404.48356147,0.00023179,7]
[348272915,1736429446866,-404.48356147,0.00023179,7]
[348272916,1736429446876,-404.48356147,0.00023179,7]
[348272917,1736429446886,-404.48356147,0.00023179,7]
[348272918,1736429446895,-404.48356147,0.00023179,7]
[348272919,1736429446905,-404.48356147,0.00023179,7]
[348272920,1736429446915,-404.48356147,0.00023179,7]
[348272921,1736429446924,-404.48356147,0.00023179,7]
[348272922,1736429446935,-404.48356147,0.00023179,7]
[348272923,1736429446945,-404.48356147,0.00023179,7]
[348272924,1736429446955,-404.48356147,0.00023179,7]
[348272925,1736429446965,-404.48356147,0.00023179,7]
[348272926,1736429446974,-404.48356147,0.00023179,7]
[348272927,1736429446984,-404.48356147,0.00023179,7]
[348272928,1736429446994,-404.48356147,0.00023179,7]
[348272929,1736429447004,-404.48356147,0.00023179,7]
[348272930,1736429447014,-404.48,0.00023179,7]
[348272931,1736429447023,-606.7253422,0.00023179,7]
[348272932,1736429447033,-606.7253422,0.00023179,7]
[348272933,1736429447043,-201.52676558,0.00023179,7]
[348272934,1736429447055,-405.19857662,0.00023179,7]
[348272935,1736429447064,-606.7253422,0.00023179,7]
[348272936,1736429447074,-606.7253422,0.00023179,7]
[348272937,1736429447083,-606.7253422,0.00023179,7]
[348272938,1736429447092,-606.7253422,0.00023179,7]
[348272939,1736429447102,-606.7253422,0.00023179,7]
[348272940,1736429447114,-606.7253422,0.00023179,7]
[348272941,1736429447124,-606.7253422,0.00023179,7]
[348272942,1736429447133,-606.7253422,0.00023179,7]
[348272943,1736429447142,-606.7253422,0.00023179,7]
[348272944,1736429447153,-606.7253422,0.00023179,7]
[348272945,1736429447163,-606.7253422,0.00023179,7]
[348272946,1736429447173,-606.7253422,0.00023179,7]
[348272947,1736429447182,-606.7253422,0.00023179,7]
[348272948,1736429447192,-606.7253422,0.00023179,7]
[348272949,1736429447202,-606.7253422,0.00023179,7]
[348272950,1736429447211,-606.7253422,0.00023179,7]
[348272951,1736429447221,-606.72,0.00023179,7]
[348272952,1736429447231,-1259.48766822,0.00023179,2]
[348272953,1736429447265,-500.0,0.00019997,3]
[348272954,1736429447275,-436.34727277,0.00023179,2]
[348272955,1736429447455,-500.0,0.00019997,3]
[348272956,1736429447465,-500.0,0.00019997,3]
[348272957,1736429447475,-500.0,0.00020271,3]
[348272958,1736429447484,-151.0,0.00020272,2]
[348272959,1736429447494,-500.0,0.00020545,3]
[348272960,1736429447503,-500.0,0.00020819,3]
[348272961,1736429447512,-500.0,0.00021093,3]
[348272962,1736429447522,-210.16266731,0.00022998,2]
[348272963,1736429447531,-151.39502769,0.00023179,2]
[348272964,1736429447543,-552.53841859,0.00023179,2]
[348272967,1736430128323,400.0,0.00013973,2]
[348272968,1736430255903,511.01808326,0.00025,120]
[348272970,1736430390327,166.0,0.00025,120]
[348272971,1736430439145,-522.0547085,0.00018828,2]
[348272972,1736430439169,-62.77458998,0.00018979,2]
[348272973,1736430440194,-159.11667052,0.00018979,2]
[348272974,1736430440215,-143.92735859,0.00018995,2]
[348272975,1736430442146,-120.05526141,0.00018995,2]
[348272976,1736430442169,-312.8031,0.00018996,2]
[348272977,1736430442196,-188.541837,0.00019178,2]
[348272978,1736430442217,-72.29831275,0.0001943,2]
[348272979,1736430443125,-427.70168725,0.0001943,2]
[348272980,1736430443154,-248.91108401,0.00019895,2]
[348272981,1736430443177,-188.95286415,0.00019896,2]
[348272982,1736430443204,-440.25026684,0.00019973,2]
[348272983,1736430445150,-59.74973316,0.00019973,2]
[348272984,1736430445173,-300.0,0.00019993,2]
[348272985,1736430445198,-500.0,0.00019994,3]
[348272986,1736430445221,-285.2384528,0.00019994,3]
[348273064,1736430632873,-188.95286415,0.00019896,2]
[348273066,1736430632883,-500.0,0.00019973,2]
[348273068,1736430632892,-500.87844868,0.00019973,2]
[348273071,1736430632901,-500.56620949,0.00019973,2]
[348273074,1736430632911,-300.0,0.00019993,2]
[348273076,1736430632920,-390.232353,0.00019993,3]
[348273078,1736430632929,-500.0,0.00019993,2]
[348273080,1736430632938,-299.0,0.00019993,2]
[348273082,1736430632948,-154.04,0.00019994,2]
[348273084,1736430632957,-154.56603678,0.00019994,3]
[348273086,1736430632970,-345.43396322,0.00019994,3]
[348273088,1736430632980,-500.0,0.00019994,3]
[348273090,1736430632989,-500.0,0.00019994,3]
[348273092,1736430632998,-500.0,0.00019994,3]
[348273094,1736430633008,-510.72299546,0.00019994,3]
[348273096,1736430633017,-500.0,0.00019994,3]
[348273098,1736430633026,-500.0,0.00019994,3]
[348273100,1736430633036,-500.0,0.00019994,3]
[348273102,1736430633045,-500.0,0.00019994,3]
[348273104,1736430633057,-500.0,0.00019994,3]
[348273106,1736430633069,-506.63747627,0.00019994,3]
[348273108,1736430633079,-500.0,0.00019994,3]
[348273110,1736430633089,-500.0,0.00019994,3]
[348273112,1736430633099,-500.0,0.00019994,3]
[348273114,1736430633110,-500.0,0.00019994,3]
[348273116,1736430633119,-500.0,0.00019994,3]
[348273117,1736430633129,-500.0,0.00019994,3]
[348273120,1736430633140,-500.0,0.00019994,3]
[348273122,1736430633150,-500.0,0.00019994,3]
[348273123,1736430633160,-500.0,0.00019994,3]
[348273125,1736430633170,-500.0,0.00019994,3]
[348273127,1736430633180,-500.0,0.00019994,3]
[348273129,1736430633190,-500.0,0.00019994,3]
[348273131,1736430633200,-500.0,0.00019994,3]
[348273133,1736430633209,-500.0,0.00019994,3]
[348273136,1736430633221,-500.0,0.00019994,3]
[348273137,1736430633231,-200.0,0.00019994,3]
[348273139,1736430633241,-500.0,0.00019994,3]
[348273141,1736430633250,-500.0,0.00019994,3]
[348273143,1736430633261,-500.0,0.00019994,3]
[348273145,1736430633271,-500.0,0.00019994,3]
[348273147,1736430633281,-516.41268895,0.00019994,3]
[348273149,1736430633292,-542.98,0.00019994,2]
[348273151,1736430633301,-500.0,0.00019994,3]
[348273153,1736430633311,-501.43853962,0.00019994,3]
[348273155,1736430633321,-500.0,0.00019994,3]
[348273168,1736430633428,-510.38277187,0.00019994,3]
[348273170,1736430633438,-503.04439915,0.00019994,3]
[348273172,1736430633448,-500.0,0.00019994,3]
[348273174,1736430633457,-500.0,0.00019994,3]
[348273176,1736430633467,-500.0,0.00019994,3]
[348273178,1736430633483,-500.0,0.00019994,3]
[348273181,1736430633493,-500.0,0.00019994,3]
[348273182,1736430633503,-500.0,0.00019994,3]
[348273184,1736430633512,-605.13,0.00019994,3]
[348273187,1736430633522,-500.0,0.00019994,3]
[348273188,1736430633532,-504.67177803,0.00019994,3]
[348273190,1736430633542,-500.0,0.00019994,3]
[348273192,1736430633551,-500.0,0.00019994,3]
[348273195,1736430633561,-500.0,0.00019994,3]
[348273196,1736430633570,-500.0,0.00019994,3]
[348273198,1736430633580,-500.0,0.00019994,3]
[348273200,1736430633590,-503.54579706,0.00019994,3]
[348273203,1736430633600,-500.0,0.00019994,3]